bitfinex-derivatives/quotes_SOLF0:USTF0_20260118
["timestamp","ask_amount","ask_price","bid_price","bid_amount"]
[1768714887850,3.20913553,142.66,142.6,1.76060076]
[1768714889449,3.20913553,142.66,142.6,1.76236734]
[1768714908573,3.20913553,142.66,142.61,1.76236734]
[1768714912773,3.23595243,142.69,142.61,1.76236734]
[1768714912971,3.23595243,142.69,142.63,1.76236734]
[1768714914776,3.23595243,142.69,142.64,6.3117]
[1768714916278,3.23595243,142.69,142.65,1.76236734]
[1768714920883,3.23595243,142.69,142.64,8.07406734]
[1768714921378,3.23595243,142.71,142.66,6.3106]
[1768714933887,3.23595243,142.71,142.65,1.76236734]
[1768714934387,3.23595243,142.71,142.65,8.07356734]
[1768714938092,3.23595243,142.71,142.65,6.3112]
[1768714974512,3.23595243,142.71,142.64,1.7612821]
[1768714975821,3.23595243,142.71,142.64,8.0729821]
[1768714982230,3.23595243,142.71,142.64,6.3117]
[1768714984030,3.24259544,142.69,142.62,6.3123]
[1768714985839,9.55219544,142.69,142.62,6.3123]
[1768714987438,3.24259544,142.74,142.58,98.2211]
[1768714987636,3.24259544,142.74,142.67,1.7612821]
[1768714987839,3.24259544,142.77,142.69,1.7612821]
[1768714988837,3.24259544,142.77,142.71,1.7612821]
[1768714990734,5.00387754,142.77,142.69,6.3094]
[1768714991540,5.00387754,142.77,142.7,1.7612821]
[1768714992042,3.24259544,142.77,142.7,1.7612821]
[1768714996140,5.00387754,142.77,142.7,1.7612821]
[1768714998938,11.31017754,142.77,142.7,1.7612821]
[1768715000145,3.24259544,142.76,142.7,1.7612821]
[1768715004948,3.24259544,142.76,142.69,6.3093]
[1768715011351,3.24259544,142.76,142.69,8.06928009]
[1768715013648,9.56570982,142.78,142.7,6.309]
[1768715013952,1.75998009,142.77,142.7,6.309]
[1768715014150,5.01988991,142.77,142.7,6.309]
[1768715015050,3.25990982,142.77,142.71,8.06848009]
[1768715015856,3.25990982,142.77,142.71,6.3085]
[1768715017453,5.01988991,142.77,142.71,6.3085]
[1768715017848,3.00014744,142.76,142.71,6.3085]
[1768715031862,3.00014744,142.76,142.69,1.75998009]
[1768715032070,3.00014744,142.76,142.69,8.06908009]
[1768715032268,3.00014744,142.76,142.69,6.3091]
[1768715033866,9.30664744,142.76,142.69,6.3091]
[1768715037171,3.0102977,142.75,142.69,6.3091]
[1768715041774,6.3065,142.76,142.69,6.3091]
[1768715042278,6.3065,142.76,142.7,1.75998009]
[1768715046983,3.0102977,142.77,142.7,8.06888009]
[1768715047184,3.0102977,142.77,142.7,21.16883615]
[1768715047386,3.0102977,142.77,142.7,8.06888009]
[1768715056093,9.3163977,142.77,142.7,8.06888009]
[1768715056298,3.0102977,142.76,142.7,8.06888009]
[1768715056499,3.0102977,142.76,142.7,6.3089]
[1768715077118,6.3061,142.77,142.7,6.3089]
[1768715078209,9.49693415,142.77,142.7,6.3089]
[1768715085217,3.19083415,142.77,142.71,1.75978665]
[1768715085417,3.19083415,142.77,142.71,14.85974271]
[1768715085919,3.19083415,142.77,142.72,6.3081]
[1768715086214,3.19083415,142.77,142.73,264.78]
[1768715092620,3.163406,142.79,142.73,264.78]
[1768715096316,3.163406,142.79,142.73,271.0877]
[1768715097620,3.163406,142.79,142.73,272.84748665]
[1768715100724,3.163406,142.81,142.73,272.84748665]
[1768715101120,3.163406,142.81,142.75,1.75978665]
[1768715106526,3.163406,142.81,142.75,6.3067]
[1768715106719,3.163406,142.81,142.76,1.75978665]
[1768715115939,3.163406,142.81,142.75,8.06648665]
[1768715119348,3.163406,142.83,142.77,1.75978665]
[1768715119548,3.163406,142.83,142.76,271.0264]
[1768715119739,3.163406,142.83,142.77,1.75978665]
[1768715120247,3.163406,142.83,142.76,271.0264]
[1768715120449,3.163406,142.83,142.77,1.75978665]
[1768715122756,3.163406,142.83,142.76,271.0264]
[1768715123050,3.163406,142.83,142.77,1.75978665]
[1768715127658,3.163406,142.83,142.76,271.0264]
[1768715131550,3.163406,142.83,142.77,8.06558665]
[1768715132855,3.163406,142.83,142.77,6.3058]
[1768715135356,3.163406,142.83,142.77,8.06386924]
[1768715138057,6.3025,142.85,142.77,8.06386924]
[1768715138254,9.61182844,142.85,142.77,8.06386924]
[1768715138454,3.30932844,142.88,142.82,1.75806924]
[1768715138657,3.30932844,142.88,142.83,264.7]
[1768715149371,3.30932844,142.94,142.86,1.75806924]
[1768715149867,3.30932844,142.93,142.86,1.75806924]
[1768715150265,3.30932844,142.92,142.87,264.64]
[1768715150965,9.60882844,142.92,142.87,264.64]
[1768715151268,3.30932844,142.91,142.87,264.64]
[1768715159172,3.06875235,142.9,142.85,1.75806924]
[1768715159763,9.36915235,142.9,142.85,1.75806924]
[1768715178104,99.74106924,142.94,142.85,1.75806924]
[1768715178105,9.36835235,142.92,142.85,1.75806924]
[1768715179300,9.36835235,142.92,142.87,1.75806924]
[1768715181603,9.36835235,142.92,142.84,270.8828]
[1768715181799,9.36835235,142.92,142.86,1.75806924]
[1768715188110,3.24663677,142.91,142.84,270.8828]
[1768715188310,3.24663677,142.91,142.85,1.75806924]
[1768715195116,3.24663677,142.91,142.84,270.8828]
[1768715195323,3.11298189,142.89,142.82,270.8435]
[1768715196817,9.41378189,142.89,142.82,270.8435]
[1768715197422,9.41378189,142.89,142.82,272.60030846]
[1768715197817,3.11298189,142.88,142.82,272.60030846]
[1768715199313,3.11298189,142.88,142.82,270.8435]
[1768715202728,3.11298189,142.9,142.83,1.75680846]
[1768715213035,3.11298189,142.9,142.83,8.06010846]
[1768715218442,3.11298189,142.9,142.84,6.3027]
[1768715218742,3.23005698,142.92,142.85,1.75680846]
[1768715219942,3.23005698,142.92,142.85,8.05920846]
[1768715220443,3.23005698,142.9,142.81,1.75680846]
[1768715220632,3.23005698,142.9,142.81,264.58]
[1768715220942,3.23005698,142.88,142.81,264.58]
[1768715221141,3.23005698,142.87,142.78,1.75680846]
[1768715221341,3.23005698,142.87,142.78,266.31680846]
[1768715221642,3.23005698,142.86,142.78,266.31680846]
[1768715227151,3.23005698,142.86,142.78,1.75680846]
[1768715227347,3.23005698,142.86,142.78,266.35680846]
[1768715228649,3.23005698,142.86,142.78,1.75680846]
[1768715228848,3.23005698,142.86,142.8,1.75680846]
[1768715232563,3.23005698,142.86,142.78,270.9053]
[1768715232860,3.23005698,142.86,142.8,1.75680846]
[1768715235968,3.23005698,142.86,142.79,264.62]
[1768715236166,3.23005698,142.86,142.8,1.75680846]
[1768715240868,3.23005698,142.86,142.79,272.68180846]
[1768715246069,3.23005698,142.86,142.8,6.3046]
[1768715250367,3.23005698,142.86,142.81,8.06080846]
[1768715250575,3.32953637,142.88,142.83,1.75680846]
[1768715256171,3.32953637,142.88,142.83,8.05990846]
[1768715259275,3.32953637,142.88,142.83,6.3031]
[1768715260874,3.32953637,142.88,142.82,1.75661639]
[1768715262679,3.32953637,142.88,142.82,8.06031639]
[1768715264485,3.32953637,142.88,142.83,6.3033]
[1768715264684,3.30874492,142.9,142.83,6.3033]
[1768715269694,3.30874492,142.9,142.84,6.3027]
[1768715287918,3.30874492,142.9,142.82,8.06001639]
[1768715288410,3.12332234,142.89,142.82,6.3034]
[1768715288617,3.12332234,142.89,142.81,1.75661639]
[1768715289719,9.42432234,142.89,142.82,6.3037]
[1768715295411,3.12332234,142.89,142.82,6.3037]
[1768715296724,3.12332234,142.89,142.83,6.3033]
[1768715303829,3.12332234,142.89,142.81,8.06041639]
[1768715304126,3.20523862,142.88,142.81,8.06041639]
[1768715315044,9.43267308,142.91,142.83,6.3032]
[1768715315333,3.13267308,142.9,142.83,6.3032]
[1768715315729,3.13267308,142.9,142.83,8.05981639]
[1768715315929,3.13267308,142.89,142.83,6.3032]
[1768715317942,3.13267308,142.89,142.82,1.75661639]
[1768715321346,3.13267308,142.89,142.82,1.75668276]
[1768715327648,3.13267308,142.88,142.82,1.75668276]
[1768715329949,3.13267308,142.88,142.81,8.06058276]
[1768715330151,3.13267308,142.87,142.81,8.06058276]
[1768715346958,3.13267308,142.87,142.81,6.3039]
[1768715347149,3.13267308,142.87,142.81,8.06058276]
[1768715351360,3.13267308,142.87,142.81,1.75668276]
[1768715351963,3.07535563,142.86,142.79,1.75668276]
[1768715352157,3.07535563,142.86,142.79,266.35668276]
[1768715352764,3.07535563,142.85,142.79,266.35668276]
[1768715353058,3.07535563,142.85,142.76,244.76438936]
[1768715353263,3.07535563,142.85,142.77,1.75668276]
[1768715354755,3.07535563,142.83,142.77,1.75668276]
[1768715355757,9.37885563,142.83,142.77,1.75668276]
[1768715358464,9.37885563,142.83,142.76,509.36438936]
[1768715358663,9.37885563,142.83,142.78,1.75668276]
[1768715371875,3.07535563,142.83,142.78,1.75668276]
[1768715381393,3.07535563,142.83,142.78,1.75769636]
[1768715390291,3.07535563,142.83,142.77,6.3059]
[1768715401318,3.07535563,142.83,142.76,266.35769636]
[1768715401319,3.07535563,142.83,142.78,6.3055]
[1768715403920,3.02389513,142.82,142.76,270.9061]
[1768715415620,3.02389513,142.82,142.76,273.90941069]
[1768715417926,3.02389513,142.82,142.76,267.60331069]
[1768715423930,9.32779513,142.82,142.76,267.60331069]
[1768715424135,9.32779513,142.82,142.77,1.75769636]
[1768715426929,6.3043,142.81,142.77,1.75769636]
[1768715430933,6.3043,142.81,142.77,9.636e-05]
[1768715432032,6.3048,142.8,142.77,9.636e-05]
[1768715435437,6.3048,142.8,142.76,4.76100705]
[1768715442937,6.3048,142.8,142.77,4.162e-05]
[1768715443438,3.02389513,142.82,142.77,1.75791843]
[1768715444838,6.3048,142.8,142.77,1.75791843]
[1768715445040,3.02389513,142.82,142.77,1.75791843]
[1768715445540,3.02389513,142.82,142.77,1.843e-05]
[1768715445842,6.3048,142.8,142.77,1.843e-05]
[1768715450646,6.3048,142.8,142.76,0.25379577]
[1768715462863,6.3048,142.8,142.76,9.577e-05]
[1768715466669,6.3048,142.8,142.75,1.75787681]
[1768715471862,3.15582128,142.81,142.75,1.75787681]
[1768715479474,3.15582128,142.81,142.74,510.25040431]
[1768715505290,3.15582128,142.81,142.74,510.25087936]
[1768715523613,3.15582128,142.81,142.74,266.45835186]
[1768715525612,6.3041,142.82,142.74,266.45835186]
[1768715525910,6.3032,142.84,142.76,1.75835186]
[1768715526112,6.3032,142.84,142.78,1.75835186]
[1768715526312,6.3032,142.84,142.78,266.45835186]
[1768715530717,9.55996096,142.84,142.78,266.45835186]
[1768715531512,9.55996096,142.84,142.78,264.7]
[1768715536727,3.25676096,142.82,142.78,264.7]
[1768715543429,3.25676096,142.82,142.75,272.76505186]
[1768715544124,6.3036,142.83,142.75,272.76505186]
[1768715550534,9.43664461,142.83,142.75,272.76505186]
[1768715555341,3.21166483,142.82,142.75,271.0067]
[1768715555535,3.21166483,142.82,142.75,272.76505186]
[1768715560737,9.51556483,142.82,142.75,266.45835186]
[1768715560943,3.21166483,142.81,142.75,266.45835186]
[1768715563343,3.21166483,142.81,142.75,264.7]
[1768715567343,3.21166483,142.81,142.75,266.45836312]
[1768715578850,9.51596483,142.81,142.75,266.45836312]
[1768715580752,3.13343169,142.75,142.6,48.1606146]
[1768715581051,3.13343169,142.75,142.68,1.75836312]
[1768715581843,6.3076,142.74,142.68,1.75836312]
[1768715584950,6.3079,142.73,142.68,1.75836312]
[1768715586952,6.3079,142.73,142.68,6.312e-05]
[1768715587858,6.3084,142.72,142.68,6.312e-05]
[1768715588358,6.3084,142.72,142.67,48.55836312]
[1768715589055,2.97622113,142.72,142.67,48.55836312]
[1768715590061,2.97622113,142.72,142.67,46.8]
[1768715590260,6.3088,142.71,142.67,9.53099424]
[1768715590465,6.3088,142.71,142.67,9.424e-05]
[1768715590655,6.3088,142.71,142.66,1.75836312]
[1768715592060,4.89179481,142.74,142.66,1.75836312]
[1768715592448,6.3073,142.75,142.66,1.75836312]
[1768715592653,3.13343169,142.76,142.68,1.75836312]
[1768715592866,9.43963169,142.77,142.7,1.75836312]
[1768715593853,9.43963169,142.77,142.68,1.75836312]
[1768715594862,3.13343169,142.76,142.68,1.75836312]
[1768715597261,6.3062,142.77,142.7,1.75836312]
[1768715598166,99.83536312,142.8,142.72,1.75836312]
[1768715598167,6.3053,142.79,142.72,1.75836312]
[1768715598558,6.3053,142.79,142.7,1.75836312]
[1768715599668,9.43873169,142.79,142.7,1.75836312]
[1768715600666,1.75836312,142.78,142.7,1.75836312]
[1768715605874,1.75836312,142.78,142.7,8.06726312]
[1768715611276,3.13343169,142.79,142.7,8.06726312]
[1768715611480,4.89179481,142.79,142.71,6.3085]
[1768715614774,4.89179481,142.79,142.72,6.308]
[1768715616080,3.03308165,142.82,142.72,98.1278]
[1768715616278,4.79144477,142.82,142.72,99.88616312]
[1768715617881,4.79144477,142.82,142.75,6.3068]
[1768715618478,3.03308165,142.83,142.76,1.75836312]
[1768715619773,3.03308165,142.83,142.77,6.3059]
[1768715625699,4.79144477,142.83,142.77,6.3059]
[1768715625895,3.03308165,142.82,142.77,6.3059]
[1768715627999,1.75836312,142.81,142.77,6.3059]
[1768715628201,4.79144477,142.81,142.77,6.3059]
[1768715629299,4.79169926,142.81,142.77,6.3059]
[1768715629696,4.79169926,142.81,142.75,6.3065]
[1768715629996,3.03308165,142.8,142.75,6.3065]
[1768715634604,3.03308165,142.8,142.73,246.89053659]
[1768715634802,3.17611939,142.78,142.73,246.89053659]
[1768715637107,3.17611939,142.82,142.73,240.58313659]
[1768715637309,3.17611939,142.82,142.74,1.75861761]
[1768715637807,3.17611939,142.82,142.76,1.75861761]
[1768715640009,3.17611939,142.83,142.78,1.75861761]
[1768715641709,3.17611939,142.87,142.78,1.75861761]
[1768715641906,3.17611939,142.87,142.8,1.75861761]
[1768715642913,3.17611939,142.87,142.81,6.304]
[1768715644115,3.17611939,142.89,142.82,8.06231761]
[1768715646717,3.17611939,142.88,142.82,6.3037]
[1768715652019,3.17611939,142.88,142.8,8.06301761]
[1768715660130,3.17611939,142.88,142.81,6.3042]
[1768715662429,3.17611939,142.88,142.81,8.06281761]
[1768715680130,8.05881761,142.91,142.81,8.06281761]
[1768715680338,8.6784683,142.9,142.81,8.06281761]
[1768715680545,5.45487374,142.89,142.81,8.06281761]
[1768715680739,3.22359456,142.9,142.82,6.3037]
[1768715680946,3.22359456,142.91,142.85,1.75861761]
[1768715681543,3.22359456,142.93,142.85,1.75861761]
[1768715682741,3.22359456,142.93,142.85,8.06101761]
[1768715689555,3.22359456,142.92,142.85,8.05839792]
[1768715694459,9.35744022,142.94,142.85,8.05839792]
[1768715694655,9.35744022,142.94,142.87,1.75599792]
[1768715696061,3.05884022,142.94,142.87,1.75599792]
[1768715702273,3.05884022,142.93,142.87,1.75599792]
[1768715702670,3.05884022,142.93,142.86,6.3019]
[1768715703763,97.9533,142.98,142.78,12.6109]
[1768715703764,3.05884022,142.91,142.78,12.6109]
[1768715704069,3.05884022,142.89,142.82,1.75599792]
[1768715704767,3.05884022,142.89,142.83,6.3033]
[1768715705368,3.05884022,142.89,142.82,1.75599792]
[1768715705562,3.05884022,142.89,142.8,266.29599792]
[1768715705761,3.05884022,142.87,142.8,266.29599792]
[1768715705964,3.05884022,142.87,142.8,264.54]
[1768715706879,3.05884022,142.87,142.8,270.8446]
[1768715709676,3.05884022,142.87,142.81,6.3041]
[1768715710576,11.11563814,142.89,142.81,6.3041]
[1768715710776,3.05884022,142.89,142.81,1.75599792]
[1768715711072,3.05884022,142.89,142.83,1.75599792]
[1768715711773,3.05884022,142.89,142.83,8.05919792]
[1768715713578,3.05884022,142.89,142.83,1.75599792]
[1768715715674,3.05884022,142.89,142.83,8.05919792]
[1768715719682,3.05884022,142.93,142.85,1.75599792]
[1768715719881,3.05884022,142.93,142.87,1.75599792]
[1768715721883,3.05884022,142.96,142.87,1.75599792]
[1768715722088,3.30856845,142.94,142.87,1.75599792]
[1768715723284,3.30856845,142.94,142.87,6.3013]
[1768715723682,3.30856845,142.95,142.86,1.75599792]
[1768715723983,3.30856845,142.95,142.88,1.75599792]
[1768715725688,3.30856845,142.96,142.88,1.75599792]
[1768715725886,3.30856845,143.01,142.9,1.75599792]
[1768715726183,3.30856845,142.99,142.92,1.75599792]
[1768715726782,3.30856845,142.99,142.92,8.05509792]
[1768715727586,3.30856845,142.99,142.93,6.2988]
[1768715730285,3.30856845,142.98,142.91,6.2995]
[1768715730484,3.30856845,142.98,142.89,1.75599792]
[1768715730880,3.30856845,142.98,142.9,6.3001]
[1768715733287,5.06456637,142.98,142.9,6.3001]
[1768715733488,3.30856845,142.97,142.9,6.3001]
[1768715735490,3.30856845,142.97,142.88,6.3008]
[1768715735692,3.28907511,142.95,142.88,8.05679792]
[1768715737490,3.28907511,142.95,142.88,6.3008]
[1768715738794,3.28907511,142.95,142.88,8.05679792]
[1768715743402,3.28907511,142.95,142.88,6.3008]
[1768715747908,3.28907511,142.95,142.84,98.044]
[1768715747909,3.28907511,142.94,142.86,272.53769792]
[1768715751304,3.28907511,142.94,142.86,272.5374175]
[1768715756007,3.28907511,142.94,142.87,6.3015]
[1768715759813,3.28907511,142.94,142.88,1.7557175]
[1768715764929,3.28907511,142.94,142.87,1.7557175]
[1768715765123,3.19607219,142.93,142.86,264.48]
[1768715766922,3.19607219,142.92,142.86,264.48]
[1768715767928,9.49547219,142.92,142.86,264.48]
[1768715771230,6.2999,142.91,142.86,264.48]
[1768715771434,3.19607219,142.91,142.84,1.7557175]
[1768715772531,1.7557175,142.92,142.83,264.52]
[1768715772532,3.19607219,142.89,142.83,264.52]
[1768715773933,6.3012,142.88,142.83,264.52]
[1768715774539,9.49787219,142.87,142.82,243.17601151]
[1768715776038,6.3018,142.87,142.82,243.17601151]
[1768715776736,6.3018,142.87,142.82,244.93172901]
[1768715778040,6.3022,142.86,142.82,244.93172901]
[1768715778738,6.3012,142.88,142.82,234.26312901]
[1768715789145,3.32931582,142.92,142.86,1.7557175]
[1768715808471,3.32931582,142.92,142.86,8.0577175]
[1768715809664,3.32931582,142.92,142.86,6.302]
[1768715810364,3.32931582,142.92,142.85,264.6]
[1768715810763,3.32931582,142.92,142.85,270.9024]
[1768715812459,5.08503332,142.92,142.85,270.9024]
[1768715812853,3.20849206,142.91,142.85,270.9024]
[1768715820169,3.20849206,142.91,142.85,272.65884344]
[1768715832176,3.20849206,142.91,142.86,6.3019]
[1768715833578,3.20849206,142.94,142.87,1.75644344]
[1768715834777,3.20849206,142.94,142.88,6.3009]
[1768715836877,3.20849206,142.94,142.89,6.3006]
[1768715846398,3.20849206,142.94,142.89,8.05704344]
[1768715851203,3.20849206,142.94,142.89,6.3006]
[1768715877819,8.05403125,142.96,142.82,232.50741151]
[1768715877820,3.05617102,142.91,142.82,232.50741151]
[1768715878123,3.05617102,142.91,142.81,1.75573125]
[1768715879024,3.05617102,142.91,142.83,6.3036]
[1768715881526,8.5087769,142.9,142.83,6.3036]
[1768715881827,3.05617102,142.9,142.83,6.3036]
[1768715885434,3.05617102,142.9,142.82,1.75573125]
[1768715886333,3.05617102,142.89,142.82,1.75573125]
[1768715889534,3.05617102,142.88,142.82,1.75573125]
[1768715896032,3.05617102,142.88,142.81,6.3047]
[1768715896337,3.05617102,142.88,142.81,8.06043125]
[1768715904048,3.12507517,142.9,142.81,1.75573125]
[1768715905535,3.12507517,142.9,142.83,6.3039]
[1768715912949,1.75573125,142.89,142.83,6.3039]
[1768715913240,4.88080642,142.89,142.83,6.3039]
[1768715922145,5.44831146,142.88,142.83,6.3039]
[1768715922352,4.88080642,142.89,142.83,6.3039]
[1768715922647,5.44831146,142.88,142.83,6.3039]
[1768715922844,4.88080642,142.89,142.83,6.3039]
[1768715923041,5.44831369,142.88,142.83,6.3039]
[1768715923246,4.88080642,142.89,142.83,6.3039]
[1768715923448,3.09870552,142.87,142.83,6.3039]
[1768715945362,3.09870552,142.87,142.82,6.3044]
[1768715953869,3.09870552,142.87,142.81,1.75720767]
[1768715962573,3.29174382,142.89,142.81,8.06190767]
[1768715962873,5.44940126,142.88,142.83,1.75720767]
[1768715963067,3.29174382,142.89,142.83,1.75720767]
[1768715963268,8.7410095,142.88,142.83,1.75720767]
[1768715963467,3.29174382,142.88,142.83,1.75720767]
[1768715974099,3.29174382,142.88,142.81,8.06190767]
[1768715994209,5.44257377,142.87,142.81,8.06190767]
[1768715994504,3.29174382,142.88,142.81,8.06190767]
[1768715994695,5.44257377,142.87,142.81,8.06190767]
[1768715994894,3.29174382,142.88,142.81,8.06190767]
[1768715995098,5.44257377,142.87,142.81,8.06190767]
[1768715995300,3.29174382,142.88,142.81,8.06190767]
[1768715995601,5.44281164,142.87,142.81,8.06190767]
[1768715995796,3.29174382,142.88,142.81,8.06190767]
[1768715996001,5.44281164,142.87,142.82,6.3043]
[1768715996203,3.29174382,142.88,142.82,6.3043]
[1768715996402,5.44303121,142.87,142.82,6.3043]
[1768715996704,3.29174382,142.88,142.82,6.3043]
[1768715996905,5.44303121,142.87,142.82,6.3043]
[1768715997105,3.29174382,142.88,142.82,6.3043]
[1768715997304,5.44303121,142.87,142.82,6.3043]
[1768715997506,3.29174382,142.88,142.82,6.3043]
[1768715997706,5.44327535,142.87,142.82,6.3043]
[1768715997903,3.29174382,142.88,142.82,6.3043]
[1768715998112,5.44327535,142.87,142.82,6.3043]
[1768715998308,3.29174382,142.88,142.82,6.3043]
[1768715998510,5.44349943,142.87,142.82,6.3043]
[1768715998712,3.29174382,142.88,142.82,6.3043]
[1768715999011,5.44349943,142.87,142.82,6.3043]
[1768715999212,3.29174382,142.88,142.82,6.3043]
[1768715999412,5.44374843,142.87,142.82,6.3043]
[1768715999608,3.29174382,142.88,142.82,6.3043]
[1768716002716,3.29174382,142.88,142.81,6.3046]
[1768716002916,3.22718029,142.86,142.81,6.3046]
[1768716009817,1.75733428,142.87,142.81,6.3046]
[1768716010725,3.22718029,142.88,142.81,6.3046]
[1768716010919,5.44311553,142.87,142.81,6.3046]
[1768716011120,3.22718029,142.88,142.81,6.3046]
[1768716011323,5.44306648,142.87,142.81,6.3046]
[1768716011630,3.22718029,142.88,142.81,6.3046]
[1768716011817,8.67023138,142.87,142.81,6.3046]
[1768716012018,3.22718029,142.87,142.81,6.3046]
[1768716032537,3.22718029,142.87,142.79,6.3055]
[1768716032733,3.06801516,142.86,142.79,6.3055]
[1768716055060,5.45183635,142.85,142.79,6.3055]
[1768716055351,3.06801516,142.86,142.79,6.3055]
[1768716055657,5.45183211,142.85,142.79,6.3055]
[1768716055858,3.06801516,142.86,142.79,6.3055]
[1768716056158,5.45183211,142.85,142.79,6.3055]
[1768716056351,3.06801516,142.86,142.79,6.3055]
[1768716056552,5.45184354,142.85,142.79,6.3055]
[1768716056759,3.06801516,142.86,142.79,6.3055]
[1768716056961,5.45184354,142.85,142.79,6.3055]
[1768716057257,3.06801516,142.86,142.79,6.3055]
[1768716057457,5.45186347,142.85,142.79,6.3055]
[1768716057661,3.06801516,142.86,142.79,6.3055]
[1768716057848,5.45186347,142.85,142.79,6.3055]
[1768716058047,3.06801516,142.86,142.79,6.3055]
[1768716058261,5.45186123,142.85,142.79,6.3055]
[1768716058458,3.06801516,142.86,142.79,6.3055]
[1768716058753,5.45189818,142.85,142.79,6.3055]
[1768716058956,3.06801516,142.86,142.79,6.3055]
[1768716059160,5.45189818,142.85,142.79,6.3055]
[1768716059360,3.06801516,142.86,142.79,6.3055]
[1768716059553,5.45195046,142.85,142.79,6.3055]
[1768716059754,3.06801516,142.86,142.79,6.3055]
[1768716059954,5.45195046,142.85,142.79,6.3055]
[1768716060158,3.06801516,142.86,142.79,6.3055]
[1768716060464,8.46222502,142.85,142.79,6.3055]
[1768716060669,3.01023499,142.85,142.79,6.3055]
[1768716072268,5.44753838,142.84,142.79,6.3055]
[1768716072461,3.01023499,142.85,142.79,6.3055]
[1768716072664,5.44753838,142.84,142.79,6.3055]
[1768716072858,3.01023499,142.85,142.79,6.3055]
[1768716073069,5.44753838,142.84,142.79,6.3055]
[1768716073271,3.01023499,142.85,142.79,6.3055]
[1768716073467,5.447969,142.84,142.79,6.3055]
[1768716073766,3.01023499,142.85,142.79,6.3055]
[1768716073968,5.447969,142.84,142.79,6.3055]
[1768716074168,3.01023499,142.85,142.79,6.3055]
[1768716074367,5.44847278,142.84,142.79,6.3055]
[1768716074568,3.01023499,142.85,142.79,6.3055]
[1768716074768,5.4484764,142.84,142.79,6.3055]
[1768716074964,3.01023499,142.85,142.78,8.06380486]
[1768716075171,5.44847864,142.84,142.78,8.06380486]
[1768716075368,3.01023499,142.85,142.78,8.06380486]
[1768716075569,5.44910833,142.84,142.78,8.06380486]
[1768716075768,3.01023499,142.85,142.78,8.06380486]
[1768716075967,5.44910833,142.84,142.78,8.06380486]
[1768716076173,3.01023499,142.85,142.78,8.06380486]
[1768716078975,9.31343499,142.85,142.78,8.06380486]
[1768716079276,5.45170012,142.84,142.78,8.06380486]
[1768716079574,9.31343499,142.85,142.78,8.06380486]
[1768716079775,5.45170598,142.84,142.78,8.06380486]
[1768716079977,3.01023499,142.84,142.78,8.06380486]
[1768716081079,3.01023499,142.84,142.78,1.75780486]
[1768716085587,9.31393499,142.84,142.78,1.75780486]
[1768716099299,3.01023499,142.84,142.78,1.75780486]
[1768716099498,3.01023499,142.84,142.77,8.06440486]
[1768716100103,3.01023499,142.84,142.78,6.306]
[1768716100801,3.01023499,142.84,142.79,1.75780486]
[1768716103297,3.0935623,142.86,142.79,1.75780486]
[1768716103505,5.45222468,142.85,142.81,1.75780486]
[1768716103693,3.0935623,142.86,142.81,1.75780486]
[1768716104004,5.45238178,142.85,142.81,1.75780486]
[1768716104301,3.0935623,142.86,142.81,1.75780486]
[1768716104504,5.45216936,142.85,142.81,1.75780486]
[1768716104696,3.0935623,142.86,142.81,1.75780486]
[1768716104896,5.45216936,142.85,142.81,1.75780486]
[1768716105102,3.0935623,142.86,142.81,1.75780486]
[1768716105403,5.45199908,142.85,142.81,1.75780486]
[1768716105599,3.0935623,142.86,142.81,1.75780486]
[1768716105901,5.4520012,142.85,142.81,1.75780486]
[1768716106099,3.0935623,142.86,142.81,1.75780486]
[1768716106399,5.45185519,142.85,142.81,1.75780486]
[1768716106601,3.0935623,142.86,142.81,1.75780486]
[1768716106800,5.45208927,142.85,142.81,1.75780486]
[1768716107100,3.0935623,142.86,142.8,6.3052]
[1768716107299,5.45193396,142.85,142.8,6.3052]
[1768716107500,3.0935623,142.86,142.8,6.3052]
[1768716107701,5.45193396,142.85,142.8,6.3052]
[1768716107907,3.0935623,142.86,142.8,6.3052]
[1768716108202,5.45193396,142.85,142.8,6.3052]
[1768716108402,3.0935623,142.86,142.8,6.3052]
[1768716108605,5.4518048,142.85,142.8,6.3052]
[1768716108804,3.0935623,142.86,142.8,6.3052]
[1768716109002,5.4518048,142.85,142.8,6.3052]
[1768716109308,3.0935623,142.86,142.8,6.3052]
[1768716109604,8.54524728,142.85,142.8,6.3052]
[1768716109804,3.0935623,142.85,142.8,6.3052]
[1768716113508,3.10389293,142.87,142.8,6.3052]
[1768716113704,5.45131164,142.86,142.8,6.3052]
[1768716113904,5.45131164,142.85,142.8,6.3052]
[1768716114209,3.10389293,142.87,142.8,6.3052]
[1768716114405,8.55507833,142.86,142.8,6.3052]
[1768716114608,5.4511854,142.85,142.8,6.3052]
[1768716114807,3.10389293,142.86,142.8,6.3052]